Cogmind - Beta 13 @@@ ROGUE MODE // 2024.04.02 @ 19:27:20 Player: LEWiKK Result: Destroyed by G-50 Soldier with Heavy Laser Performance ------------- Evolutions (2) 1000 Regions Visited (3) 600 Robots Destroyed (83) 415 Value Destroyed (2541) 2541 Prototype IDs (2) 40 Alien Tech Used (0) 0 Bonus (45) 45 TOTAL SCORE: 4641 Bonus ------- High Alert Combat Kills 45 Cogmind --------- Core Integrity 0/550 Matter 66/300 Energy 70/100 System Corruption 2% Temperature Warning (302) Movement Treading (225) Ox1 Location -8/Materials Parts ------- > --- POWER (1) -------- (None) > --- PROPULSION (4) --- Advanced Treads Advanced Treads Advanced Treads Advanced Treads > --- UTILITY (4) ------ Huge Storage Unit Machine Analyzer Medium Armor Plating > --- WEAPON (2) ------- Improved EM Shotgun Faulty Heavy Particle Gun > --- INVENTORY (25) --- High-capacity Storage Unit Improved Sensor Array Improved Terrain Scanner Terrain Scan Processor Advanced Targeting Computer Advanced Targeting Computer ECM Suite Medium Armor Plating Recalibrator Small Laser Small Laser Beam Rifle Faulty Heavy Particle Gun Improved Datajack Peak State ------------ > --- POWER ------------ Light Ion Engine > --- PROPULSION ------- Advanced Treads Advanced Treads Advanced Treads Advanced Treads > --- UTILITY ---------- Huge Storage Unit Machine Analyzer Medium Armor Plating > --- WEAPON ----------- Improved EM Shotgun Heavy Particle Gun > --- INVENTORY -------- High-capacity Storage Unit Improved Sensor Array Improved Terrain Scanner Terrain Scan Processor Advanced Targeting Computer Advanced Targeting Computer ECM Suite Medium Armor Plating Recalibrator Small Laser Small Laser Beam Rifle Heavy Particle Gun Improved Datajack [Rating: 29] Favorites ----------- Power Light Nuclear Core Engine Ion Engine Power Core Light Nuclear Core Propulsion Aluminum Leg Treads Light Treads Leg Aluminum Leg Utility Signal Interpreter Device Improved Sensor Array Storage High-capacity Storage Unit Processor Signal Interpreter Protection Medium Armor Plating Weapon Heavy Assault Rifle Energy Gun Small Laser Ballistic Gun Heavy Assault Rifle Launcher Improved Grenade Launcher Slashing Weapon Mining Claw Special Melee Weapon Datajack Build | -11 -10 -9 -8 ------- Run | Yrd Mat Mat Mat Slots Evolved 4 | . . 2 2 Power . | . . . . Propulsion 2 | . . 2 . Utility 2 | . . . 2 Weapon . | . . . . Parts Attached 89 | 7 14 30 38 Power 8 | 1 2 2 3 Engine 6 | 1 . 2 3 Core 2 | . 2 . . Reactor . | . . . . Propulsion 34 | 2 2 15 15 Treads 12 | . . . 12 Leg 22 | 2 2 15 3 Wheel . | . . . . Hover . | . . . . Flight . | . . . . Utility 19 | 2 7 2 8 Device 5 | 1 1 . 3 Storage 9 | 1 5 2 1 Processor 3 | . 1 . 2 Hackware . | . . . . Protection 2 | . . . 2 Artifact . | . . . . Weapon 28 | 2 3 11 12 Energy Gun 10 | . 3 4 3 Energy Cannon . | . . . . Ballistic Gun 8 | 2 . 3 3 Ballistic Cannon . | . . . . Launcher 2 | . . . 2 Special Weapon . | . . . . Impact Weapon . | . . . . Slashing Weapon 2 | . . 1 1 Piercing Weapon . | . . . . Special Melee Weapon 6 | . . 3 3 Unidentified Prototypes 2 | . . . 2 Parts Lost 46 | . 5 18 23 Power 7 | . 1 2 4 Propulsion 23 | . 1 12 10 Utility 3 | . . . 3 Weapon 13 | . 3 4 6 Highest Loss Streak 7 | . 3 7 5 To Critical Strikes . | . . . . Average Slot Usage (%) 96 | . 99 98 90 Engine 5 | . . 9 7 Core 4 | . 13 . . Treads 7 | . . . 23 Leg 26 | . 27 43 9 Device 3 | . 2 . 7 Storage 11 | . 14 11 9 Processor 12 | . 11 11 15 Energy Gun 8 | . 14 7 2 Ballistic Gun 12 | . 13 12 12 Special Melee Weapon 1 | . . 1 1 Naked Turns . | . . . . Heaviest Build 103 | 12 48 51 103 Greatest Support 88 | 20 20 40 88 Greatest Overweight (x) 31 | 1 2 2 31 Average Overweight (x) . | . . 1 1 Largest Inventory Capacity 25 | 8 25 25 25 Average Capacity 19 | 7 14 20 23 Most Carried 24 | 7 16 20 24 Average Carried 15 | 3 11 18 19 Final Capacity 25 | 8 20 20 25 Final Carried 18 | 2 15 18 14 Class Distribution -------------------- 52% | Scavenger-Mutant 21% | Mutant 19% | Scavenger-Skirmisher 6% | Scavenger-Assassin Dominant Class ---------------- Scavenger-Mutant | -10/Materials Scavenger-Mutant | -9/Materials Scavenger-Skirmisher | -8/Materials Resources | -11 -10 -9 -8 ----------- Run | Yrd Mat Mat Mat Matter Collected 1667 | 213 420 417 617 Remotely . | . . . . Salvage Created 2858 | 18 636 1065 1139 Parts 191 | 3 43 70 75 Haulers Intercepted 2 | . . . 2 Recyclers Shooed 3 | . . 1 2 Parts Field Recycled . | . . . . Retrieved Matter . | . . . . Parts Self-Destructed . | . . . . Prevented . | . . . . Kills | -11 -10 -9 -8 ------- Run | Yrd Mat Mat Mat Combat Hostiles Destroyed 61 | . 16 21 24 Guns 53 | . 16 21 16 AOE 8 | . . . 8 Classes Destroyed 14 | 1 3 4 6 Worker 4 | . . 2 2 Builder 3 | . . . 3 Tunneler 2 | 1 . . 1 Hauler 2 | . . . 2 Recycler 2 | . . . 2 Mechanic 3 | . . 1 2 Operator 1 | . . . 1 Watcher 5 | . 2 2 1 Swarmer 10 | . 3 . 7 Grunt 33 | . 13 12 8 Brawler 1 | . . . 1 Duelist 3 | . . 1 2 Sentry 13 | . . 8 5 Hunter 1 | . . . 1 Best Kill Streak 6 | 1 4 4 6 Combat Bots Only 4 | . 3 3 4 Max Kills in Single Turn 3 | 1 1 1 3 Gunslinging 1 | . . . 1 Exploded 2 | . . . 2 Melee . | . . . . Uniques/NPCs Destroyed . | . . . . Combat | -11 -10 -9 -8 -------- Run | Yrd Mat Mat Mat Hostile Shots Fired 552 | . 97 205 250 Missed 147 | . 26 55 66 Damage Taken 5536 | . 795 2002 2739 Core 1144 | . 187 391 566 Absorbed by Shields . | . . . . Core Remaining (%) 42 | 100 25 2 . Volleys Fired 274 | 1 87 91 95 Largest 2 | 2 2 2 2 Hottest 90 | 40 90 80 79 Shots Fired 444 | 2 158 146 138 Gun 425 | 2 158 146 119 Cannon . | . . . . Launcher 19 | . . . 19 Special . | . . . . Kinetic 279 | 2 124 72 81 Thermal 133 | . 34 74 25 Explosive 19 | . . . 19 Electromagnetic 13 | . . . 13 Robot Hit Streak 19 | 1 7 18 19 Robot Miss Streak 5 | . 4 2 5 Penetration Max . | . . . . Secondary Targets 3 | . 1 1 1 Max Gunslinging Chain 1 | . 1 1 1 Shots Hit Robots 329 | 1 98 122 108 Core Hits 158 | 1 38 43 76 Critical Kills 3 | . 1 2 . Critical Parts Destroyed 1 | . . 1 . Critical Strikes 7 | . 1 3 3 Burn 3 | . . . 3 Destroy 4 | . 1 3 . Melee Attacks 23 | . . 10 13 Impact . | . . . . Slashing 4 | . . 2 2 Piercing . | . . . . Sneak Attacks 16 | . . 9 7 Combat Hostiles . | . . . . Follow-up Attacks . | . . . . Damage Inflicted 5503 | 14 1024 1571 2894 Guns 3883 | 14 1024 1462 1383 Cannons . | . . . . Explosions 1461 | . . . 1461 Melee 105 | . . 72 33 Ramming 54 | . . 37 17 Kinetic 2586 | 14 759 845 968 Thermal 1246 | . 265 617 364 Explosive 1302 | . . . 1302 Electromagnetic 210 | . . . 210 Impact . | . . . . Slashing 105 | . . 72 33 Piercing . | . . . . Highest Corruption 2 | . . . 2 Average Corruption 2 | . . . 2 Corruption Purged . | . . . . Corruption Blocked . | . . . . Effects 6 | . . . 6 Message Errors 2 | . . . 2 Matter Fused 2 | . . . 2 Data Loss (minor) 1 | . . . 1 Misfires 1 | . . . 1 Overload Shots . | . . . . Overflow Damage 73 | . . 10 63 Projectiles . | . . . . Explosions 63 | . . . 63 Melee 10 | . . 10 . Knockbacks . | . . . . Impact . | . . . . Kinetic . | . . . . Secondary . | . . . . Self-Inflicted Damage 105 | . . . 105 Shots 4 | . . . 4 Rammed 1 | . . . 1 Targets Rammed 3 | . . 2 1 Kicked 2 | . . 2 . Crushed . | . . . . Highest Temperature 412 | . 412 62 293 Average Temperature 48 | . 65 15 61 Received Heat Transfer 2016 | . 456 804 756 Effects 1 | . 1 . . Shutdowns 1 | . 1 . . Siege Activations . | . . . . Robots Corrupted . | . . . . Combat Hostiles . | . . . . Parts Fried 3 | . . . 3 Impact Corruptions . | . . . . Robots Melted . | . . . . Combat Hostiles . | . . . . Parts Melted 5 | . 3 2 . Heat Transferred 3025 | . 706 1425 894 Parts Sabotaged . | . . . . Parts Stolen . | . . . . Parts Stripped . | . . . . Power Chain Reactions 2 | . . . 2 Alert | -11 -10 -9 -8 ------- Run | Yrd Mat Mat Mat Peak Influence 481 | 5 212 202 481 Initial 38 | . 3 20 38 Average 76 | 2 61 72 97 Maximum Alert Level 2 | . 1 1 2 Low Security (%) 93 | 100 98 97 85 Level 1 2 | . 1 2 4 Level 2 3 | . . . 10 Level 3 . | . . . . Level 4 . | . . . . Level 5 . | . . . . High Security . | . . . . Max Security . | . . . . Squads Dispatched 15 | . 6 3 6 Investigation 3 | . 2 1 . Extermination . | . . . . Reinforcement 7 | . 4 2 1 Assault 2 | . . . 2 Garrison 3 | . . . 3 Intercept . | . . . . Searches Triggered . | . . . . Construction Impeded . | . . . . Haulers Reinforced . | . . . . Active Scanning Responses . | . . . . Cargo Convoy Interrupts . | . . . . Stealth | -11 -10 -9 -8 --------- Run | Yrd Mat Mat Mat Distress Signals 5 | . . 3 2 Communications Jammed . | . . . . Distress Signals . | . . . . Times Spotted 115 | . 36 37 42 Peak Tracking Total 6 | . 4 6 6 Tactical Retreats 1 | . . . 1 Traps | -11 -10 -9 -8 ------- Run | Yrd Mat Mat Mat Traps Triggered 2 | . 2 . . Indirectly . | . . . . Trap Hack Attempts . | . . . . Triggered . | . . . . Disarmed . | . . . . Reprogrammed . | . . . . Reused . | . . . . Traps Extracted . | . . . . Installed . | . . . . Triggered . | . . . . Machines | -11 -10 -9 -8 ---------- Run | Yrd Mat Mat Mat Machines Disabled 3 | . . . 3 Max in Single Turn 2 | . . . 2 Garrison Access 1 | . . . 1 Machines Repaired . | . . . . Machines Dismantled . | . . . . Machines Sabotaged . | . . . . Overloaded Fab Kills . | . . . . Hacking | -11 -10 -9 -8 --------- Run | Yrd Mat Mat Mat Machines Accessed 10 | . 2 4 4 Terminals 9 | . 1 4 4 Fabricators . | . . . . Repair Stations . | . . . . Recycling Units 1 | . 1 . . Scanalyzers . | . . . . Garrison Access . | . . . . Total Hacks 29 | . 7 11 11 Successful 19 | . 4 7 8 Failed 10 | . 3 4 3 Catastrophic 1 | . . . 1 Database Lockouts . | . . . . Manual 7 | . . 4 3 Terminals 26 | . 4 11 11 Fabricators . | . . . . Repair Stations . | . . . . Recycling Units 3 | . 3 . . Scanalyzers . | . . . . Garrison Access . | . . . . Terminal Hacks 17 | . 2 7 8 Record 4 | . . . 4 Emergency Access Points 2 | . . 1 1 Alert Level 4 | . 1 2 1 Unreport Threat 1 | . . 1 . Locate Traps 1 | . . 1 . Dispatch Records 1 | . . 1 . Transport Status 1 | . . . 1 Investigation Status 1 | . 1 . . Hauler Manifests 2 | . . 1 1 Fabricator Hacks . | . . . . Repair Station Hacks . | . . . . Recycling Unit Hacks 2 | . 2 . . Report Inventory 1 | . 1 . . Retrieve Components 1 | . 1 . . Scanalyzer . | . . . . Garrison Access Hacks . | . . . . Unauthorized Hacks . | . . . . Terminals . | . . . . Fabricators . | . . . . Repair Stations . | . . . . Recycling Units . | . . . . Scanalyzers . | . . . . Garrison Access . | . . . . Data Cores Recovered 1 | . . . 1 Used . | . . . . Hacking Detections 8 | . 1 3 4 Full Trace Events 1 | . . 1 . Feedback Events . | . . . . Feedback Blocked . | . . . . Robot Schematics Acquired . | . . . . Robots Built . | . . . . Authchips . | . . . . Time . | . . . . Total Robot Build Rating . | . . . . Part Schematics Acquired . | . . . . Parts Built . | . . . . Authchips . | . . . . Time . | . . . . Total Part Build Rating . | . . . . Parts Repaired . | . . . . Time . | . . . . Parts Recycled . | . . . . Recycled Matter . | . . . . Retrieved Matter . | . . . . Retrieved Components 9 | . 9 . . Parts Scanalyzed . | . . . . Part Schematics Acquired . | . . . . Parts Damaged . | . . . . Bothacking | -11 -10 -9 -8 ------------ Run | Yrd Mat Mat Mat Used RIF Installer . | . . . . Robots Hacked 6 | . . 2 4 Non-combat 5 | . . 2 3 Combat 1 | . . . 1 Robot Hacks Applied 13 | . . 7 6 parse_system 3 | . . 2 1 no_distress 7 | . . 3 4 find_station 3 | . . 2 1 Relay Couplers Released 1 | . . . 1 Machine Destruction 1 | . . . 1 Fabnet Peak Effective % . | . . . . Robots Rewired . | . . . . Allies Hacked . | . . . . Hacks Repelled . | . . . . Allies | -11 -10 -9 -8 -------- Run | Yrd Mat Mat Mat Total Allies . | . . . . Largest Group . | . . . . Highest-Rated Group . | . . . . Highest-Rated Ally . | . . . . Total Orders . | . . . . Ally Attacks . | . . . . Total Damage . | . . . . Kills . | . . . . Allies Corrupted . | . . . . Allies Melted . | . . . . Intel | -11 -10 -9 -8 ------- Run | Yrd Mat Mat Mat Robot Analysis Total . | . . . . Derelict Logs Recovered . | . . . . Drone Launches . | . . . . Drone Recoveries . | . . . . Exploration | -11 -10 -9 -8 ------------- Run | Yrd Mat Mat Mat Turns Passed 6209 | 64 2271 1805 2069 Spaces Moved 2456 | 47 1021 705 683 Core 21 | 20 . . 1 Treads 455 | . . . 455 Legs 1980 | 27 1021 705 227 Wheels . | . . . . Hover . | . . . . Flight . | . . . . Fastest Speed 50 | 50 120 190 145 Average Speed 195 | 98 176 190 237 Slowest Speed 1600 | 120 260 260 1600 Overloaded Moves . | . . . . Propulsion Burnouts . | . . . . Robots Hopped . | . . . . Cave-ins Triggered . | . . . . Exploration Rate (%) 51 | 4 98 61 44 Regions Visited 3 Branch Regions . Pre-discovered Areas . | . . . . Known Exits Taken 2 | . 1 1 . Unknown Exits Taken 1 | 1 . . . Scrap Searched . | . . . . Spaces Dug . | . . . . Terrain Destroyed 125 | . . . 125 Melee . | . . . . Projectile . | . . . . AOE 125 | . . . 125 Terrain Rammed . | . . . . Walls Destroyed . | . . . . Machines Disabled . | . . . . Actions | -11 -10 -9 -8 --------- Run | Yrd Mat Mat Mat Total 3428 | 63 1357 1024 984 Wait 427 | . 175 133 119 Move 2453 | 46 1020 704 683 Hop . | . . . . Pick Up 115 | 9 40 39 27 Fast Attach . | . . . . Attach 69 | 7 11 21 30 Detach 4 | . 2 . 2 Swap 20 | . 3 9 8 Drop 40 | . 19 15 6 Fire 274 | 1 87 91 95 Melee 23 | . . 10 13 Ram . | . . . . Kick 2 | . . 2 . Crush 1 | . . . 1 Escape Stasis . | . . . . Rewire . | . . . . Trap . | . . . . Miscellaneous . | . . . . Route ------- -11/Scrapyard -10/Materials (discovered 5 exits: *Mat x3 / *Min x2) -9/Materials (discovered 2 exits: *Mat / *Min) -8/Materials (discovered 1 exit: [*Fac]) History --------- Turn | Location | Event 6 | -11/Scrapyard | Discovered new exit (range 15) 65 | -11/Scrapyard | Entered Materials 327 | -10/Materials | Build established: Mutant 461 | -10/Materials | Discovered new exit (range 8) 507 | -10/Materials | Discovered new exit (range 16) 529 | -10/Materials | Identified exit to Mines 674 | -10/Materials | Discovered new exit (range 8) 681 | -10/Materials | Identified exit to Materials 1165 | -10/Materials | Core integrity fell below 50% 1193 | -10/Materials | Lost 3 parts (1n2w) 1456 | -10/Materials | Build established: Scavenger-Mutant 1653 | -10/Materials | Discovered exit to Materials (range 15) 2187 | -10/Materials | Discovered exit to Mines (range 7) 2336 | -10/Materials | Entered another Materials area 2336 | -9/Materials | Evolved 2 slots: Propulsion x2 2471 | -9/Materials | Core integrity fell below 50% 2485 | -9/Materials | Lost 7 parts (1p5n1w) 3044 | -9/Materials | Core integrity fell below 20% 3643 | -9/Materials | Discovered new exit (range 9) 3656 | -9/Materials | Identified exit to Mines 4091 | -9/Materials | Discovered new exit (range 7) 4104 | -9/Materials | Identified exit to Materials 4141 | -9/Materials | Entered another Materials area 4141 | -8/Materials | Evolved 2 slots: Utility x2 4383 | -8/Materials | Lost 3 parts (1p2n) 5163 | -8/Materials | Build established: Scavenger-Skirmisher 5686 | -8/Materials | Garrison activated, responded to threat 5710 | -8/Materials | Discovered new exit (range 10) 5772 | -8/Materials | Lost 3 parts (1u2w) 5895 | -8/Materials | Lost 5 parts (1p3n1u) 6018 | -8/Materials | Lost 4 parts (2n2w) 6087 | -8/Materials | Core integrity fell below 50% 6117 | -8/Materials | Lost 5 parts (1p2n2w) 6141 | -8/Materials | First assault squad dispatched 6197 | -8/Materials | Core integrity fell below 20% 6210 | -8/Materials | Destroyed by G-50 Soldier with Heavy Laser Last Messages --------------- U-05 Engineer lays Concrete. C-30 ARC bursts open, deploying its payload. G-50 Soldier unfolds itself. G-47 Trooper unfolds itself. L-31 Rogue unfolds itself. I-25 Savior unfolds itself. Critical hit (Burn: +37). Door malfunctions. U-05 Engineer lays Concrete. U-05 Engineer forms the Earth. Adv. Treads severed. U-05 Engineer forms the Earth. Identified Hvy. Particle Gun. Faulty integration triggers heat surge (+207). Critical hit (Burn: +37). U-05 Engineer forms the Earth. G-47 Trooper destroyed. Chain reaction triggered in Imp. Ion Engine. Lgt. Ion Engine destroyed. U-05 Engineer forms the Earth. Map ----- +----------------------------------------------------+ | % * #?####????? | | ###################### ######%= # ! #?????????? | | == #????????### # # # # #########??????? | | * #????????# ! # # * ! #??? | | ! #????????# # # #??? | | #????????# !* # # """ """ """ ???? | | ! #????????# += + """ """?"""????? | | ! #????????# #%= # """ """?"""????? | | ! #????????# # # ????????? | | ##########????????# ! " ########?????????? | | #?????????????# " #????????????????? | | #????????############"""" ##???????????????? | | #????????# ###### ##?????????"""???? | | # #????????# # # # #????????"""???? | | ?? #????????# / *# # # #????????"""???? | | ??? #????????# == " ## # # #??????????????? | | ?????????????# ! #u# #%%%# #??????????????? | | ?????????????# # #% # #??????????????? | | ?????????????# [ =# # #??????????????? | | ?????????????# # [ #% ###??#????""?????? | | #######??????#####+###### ### # ?????"T?????? | | #???????# = # """????""?????? | | """## ?????# * ;% """???????????? | | """## #### "" g %g; k""" ??????????? | | """## "T l [i; wr u #????????? | | ## "" @ ; """???????????? | | """## # """???????????? | | """#?? #### #########??"""???????????? | | ! """#???????# #????????????????????????? | | #???????# """ #????????????????????????? | | #######???????# """ #????????????????????????? | | ??????????????# """ #??????????????????"""???? | | ??????????????# #??????????????????"""???? | | ??????????????# #??????????????????"""???? | | ?"""??"""?????# """ #????????????????????????? | | ?"""??"""?????# """ #????????????????????????? | | ?"""??"""?????? """ #????????????????????????? | | ??????????????#???? #????????????????????????? | | ??????????????????? #????????????????????????? | | ?????????????????""" #????????????????????????? | | ?????????????????""" ????????????????????????? | | ?????????????????""" #????????????????????????? | | ???????????????????? #????????????????????????? | | ???????????????????? ??????????????????????????? | | T"???????????????"""?????????????????????????????? | | ""???????????????"""?????????????????????????????? | | ?????????????????"""?????????????????????????????? | | ?????????????????????????????????????????????????? | | ?????????????????????????????????????????????????? | | ?????????????????"""?????????????????????????????? | +----------------------------------------------------+ Best States ------------- Heat Dissipation 31 Energy Generation 14 Energy Capacity 265 Matter Stores 300 Matter Capacity 300 Sight Range 16 Robot Scan Range 15 Terrain Scan Range 16 Terrain Scan Density 10 ECM Strength 1 Armor Coverage 225 Evasion (%) 55 Recoil Reduction 4 Item Schematics ----------------- None Robot Schematics ------------------ None Fabricated ------------ Nothing Alien Tech Used ----------------- None Achievements -------------- I Spy Loot Pinata Significant Disruption Challenges ------------ None Game ------ Seed SigixCryofiberArchive Manual? 0 Play Time 01:15:06 Cumulative 5.4 hours Start 2024.04.02 @ 18:10:31 End 2024.04.02 @ 19:27:20 Sessions 1 Manual Loads 0 Difficulty Rogue Special Mode None Game No. 5 Rogue 5 Adventurer 0 Explorer 0 Win Type - Total 0 Types 0/0/0/0/0/0/0/0/0 Lore% 4 Gallery% 8 Achievement% 8 Wizard Run 0 Options --------- Layout 1 ASCII 0 Keyboard 0 Movement Mouse Keybinds 0 Fullscreen 2 Font 20/SmallcapsGlow Map View 54x42 Zoom Use 0% Tactical HUD 0 Map Filters NONE Filters NONE Steam 1 RUN: 5f107477-3b12-4cbf-a273-ac5ab8c63a8f